fUST/lending_fUST_20240804
["ID","MTS","AMOUNT","RATE_DAILY","PERIOD"]
[334077579,1722739852788,-500.0,0.00016369,2]
[334077580,1722739852798,-500.0,0.00016369,2]
[334077581,1722739852807,-524.46,0.00016369,2]
[334077582,1722739852816,-500.0,0.00016369,2]
[334077583,1722739852826,-1305.48,0.00016369,2]
[334077584,1722739852835,-500.0,0.00016369,2]
[334077585,1722739852844,-502.03,0.00016369,2]
[334077586,1722739852852,-1075.5,0.00016369,2]
[334077587,1722739852863,-500.0,0.00016369,2]
[334077588,1722739852872,-691.13,0.00016369,2]
[334077589,1722739852881,-658.23,0.00016369,2]
[334077590,1722739852890,-151.0,0.0001637,2]
[334077591,1722739852899,-500.0,0.0001637,2]
[334077592,1722739852909,-642.56,0.0001637,2]
[334077593,1722739852918,-3000.0,0.0001637,2]
[334077594,1722739852928,-3000.0,0.0001638,2]
[334077595,1722739852938,-3000.0,0.0001639,2]
[334077596,1722739852947,-3000.0,0.000164,2]
[334077597,1722739852958,-151.0,0.0001641,2]
[334077598,1722739852969,-3000.0,0.0001641,2]
[334077599,1722739852979,-1276.201172,0.0001641,2]
[334077600,1722739852990,-1276.201172,0.0001641,2]
[334077601,1722739852999,-216.569326,0.0001641,2]
[334077602,1722739853008,-216.569326,0.0001641,2]
[334077603,1722739853017,-500.0,0.0001641,2]
[334077604,1722739853029,-500.0,0.0001641,2]
[334077605,1722739853038,-956.65,0.0001641,2]
[334077606,1722739853048,-3000.0,0.0001642,2]
[334077607,1722739853057,-3200.0,0.00016423,2]
[334077608,1722739853067,-276.718,0.00016423,2]
[334077609,1722739853076,-500.0,0.00016425,2]
[334077610,1722739853086,-240.133819,0.00016428,2]
[334077611,1722739853095,-240.133827,0.00016428,2]
[334077612,1722739853105,-524.46,0.00016428,2]
[334077613,1722739853115,-3000.0,0.0001643,2]
[334077614,1722739853124,-356.0,0.00016438,2]
[334077615,1722739853134,-325.02,0.00016438,2]
[334077616,1722739853143,-325.02,0.00016438,2]
[334077617,1722739853151,-325.02,0.00016438,2]
[334077618,1722739853161,-325.02,0.00016438,2]
[334077619,1722739853170,-154.411905,0.00016438,2]
[334077620,1722739853180,-154.411905,0.00016438,2]
[334077621,1722739853189,-154.411905,0.00016438,2]
[334077622,1722739853200,-154.411905,0.00016438,2]
[334077623,1722739853210,-154.411905,0.00016438,2]
[334077624,1722739853220,-154.411905,0.00016438,2]
[334077625,1722739853230,-154.411905,0.00016438,2]
[334077626,1722739853241,-154.411905,0.00016438,2]
[334077627,1722739853252,-154.411905,0.00016438,2]
[334077628,1722739853262,-154.411905,0.00016438,2]
[334077629,1722739853271,-154.411905,0.00016438,2]
[334077630,1722739853280,-154.411905,0.00016438,2]
[334077631,1722739853291,-154.411905,0.00016438,2]
[334077632,1722739853301,-154.411905,0.00016438,2]
[334077633,1722739853312,-154.411905,0.00016438,2]
[334077634,1722739853322,-154.411905,0.00016438,2]
[334077635,1722739853331,-154.411905,0.00016438,2]
[334077636,1722739853341,-154.411905,0.00016438,2]
[334077637,1722739853351,-154.411905,0.00016438,2]
[334077638,1722739853360,-154.411909,0.00016438,2]
[334077639,1722739853371,-5509.179153,0.0001644,2]
[334077640,1722739853380,-531.99583835,0.000165,2]
[334077641,1722739853389,-1004.277317,0.000165,2]
[334077642,1722739853400,-155.01241559,0.00016532,2]
[334077643,1722739853410,-524.46,0.00016569,2]
[334077644,1722739853420,-524.46,0.00016569,2]
[334077645,1722739853429,-524.46,0.00016569,2]
[334077646,1722739853440,-524.46,0.00016569,2]
[334077647,1722739853450,-524.53164226,0.00016569,2]
[334077648,1722739853459,-2889.0,0.0001657,2]
[334077649,1722739853469,-500.0,0.00016643,2]
[334077650,1722739853478,-500.0,0.00016643,2]
[334077651,1722739853488,-325.02,0.00016643,2]
[334077652,1722739853497,-500.0,0.00016643,2]
[334077653,1722739853507,-500.0,0.00016643,2]
[334077654,1722739853516,-500.0,0.00016643,2]
[334077655,1722739853526,-500.0,0.00016643,2]
[334077656,1722739853536,-1305.48,0.00016643,2]
[334077657,1722739853551,-500.0,0.00016643,2]
[334077658,1722739853560,-502.03,0.00016643,2]
[334077659,1722739853569,-1075.5,0.00016643,2]
[334077660,1722739853578,-500.0,0.00016643,2]
[334077661,1722739853592,-691.13,0.00016643,2]
[334077662,1722739853604,-658.23,0.00016643,2]
[334077663,1722739853615,-500.0,0.00016644,2]
[334077664,1722739853627,-642.56,0.00016644,2]
[334077665,1722739853639,-500.0,0.00016684,2]
[334077666,1722739853650,-500.0,0.00016684,2]
[334077667,1722739853661,-956.65,0.00016684,2]
[334077668,1722739853672,-500.0,0.00016699,2]
[334077669,1722739853682,-151.0,0.00016795,2]
[334077670,1722739853692,-1276.201172,0.00016917,2]
[334077671,1722739853702,-1276.2011758,0.00016917,2]
[334077672,1722739853711,-216.569326,0.00016917,2]
[334077673,1722739853720,-216.569325,0.00016917,2]
[334077674,1722739853731,-500.0,0.00016917,2]
[334077675,1722739853742,-500.0,0.00016917,2]
[334077676,1722739853752,-325.02,0.00016917,2]
[334077677,1722739853762,-500.0,0.00016917,2]
[334077678,1722739853771,-500.0,0.00016917,2]
[334077679,1722739853782,-500.0,0.00016917,2]
[334077680,1722739853793,-500.0,0.00016917,2]
[334077681,1722739853802,-1305.48,0.00016917,2]
[334077682,1722739853812,-500.0,0.00016917,2]
[334077683,1722739853822,-502.03,0.00016917,2]
[334077684,1722739853832,-1075.5,0.00016917,2]
[334077685,1722739853842,-605.53896007,0.00016917,2]
[334077686,1722739853852,-691.13,0.00016917,2]
[334077687,1722739853862,-658.23,0.00016917,2]
[334077688,1722739853879,-500.0,0.00016918,2]
[334077689,1722739853889,-642.56,0.00016918,2]
[334077690,1722739853899,-3160.45770161,0.00016935,2]
[334077691,1722739853909,-208.58405543,0.00016958,2]
[334077692,1722739853920,-500.0,0.00016958,2]
[334077693,1722739853930,-956.65,0.00016958,2]
[334077694,1722739853939,-500.0,0.00016973,2]
[334077695,1722739853949,-356.0,0.00016984,2]
[334077696,1722739853958,-154.71377951,0.00017,2]
[334077697,1722739853968,-75119.51301886,0.00017,2]
[334077698,1722739853978,-1000.0,0.00017,17]
[334077699,1722739853988,-156.719194,0.00017,2]
[334077700,1722739853998,-1000.0,0.00017,2]
[334077701,1722739854010,-400.0,0.00017042,2]
[334077702,1722739854019,-160.0,0.00017105,3]
[334077703,1722739854030,-160.0,0.00017139,4]
[334077704,1722739854040,-160.0,0.00017174,5]
[334077705,1722739854050,-308.38331507,0.00017191,2]
[334077706,1722739854060,-614.81893241,0.00017191,2]
[334077707,1722739854071,-325.02,0.00017191,2]
[334077708,1722739854081,-500.0,0.00017191,2]
[334077709,1722739854092,-500.0,0.00017191,2]
[334077710,1722739854102,-500.0,0.00017191,2]
[334077711,1722739854111,-500.0,0.00017191,2]
[334077712,1722739854126,-1305.48,0.00017191,2]
[334077713,1722739854137,-500.0,0.00017191,2]
[334077714,1722739854225,-502.03,0.00017191,2]
[334077715,1722739854238,-1075.5,0.00017191,2]
[334077716,1722739854249,-691.13,0.00017191,2]
[334077717,1722739854259,-658.23,0.00017191,2]
[334077718,1722739854270,-500.0,0.00017192,2]
[334077719,1722739854281,-642.56,0.00017192,2]
[334077720,1722739854291,-160.0,0.00017209,6]
[334077721,1722739854303,-500.0,0.00017232,2]
[334077722,1722739854313,-956.65,0.00017232,2]
[334077723,1722739854324,-160.0,0.00017243,7]
[334077724,1722739854334,-500.0,0.00017247,2]
[334077725,1722739854347,-160.0,0.00017278,8]
[334077726,1722739854358,-294.2310959,0.00017288,2]
[334077727,1722739854371,-294.2310959,0.00017288,2]
[334077728,1722739854380,-294.2310959,0.00017288,2]
[334077729,1722739854390,-294.2310959,0.00017288,2]
[334077730,1722739854399,-294.2310959,0.00017288,2]
[334077731,1722739854408,-294.2310959,0.00017288,2]
[334077732,1722739854417,-535.5592411,0.00017288,2]
[334077733,1722739854427,-160.0,0.00017312,9]
[334077734,1722739854437,-160.0,0.00017347,10]
[334077735,1722739854447,-459.69835721,0.00017379,4]
[334077736,1722739854458,-160.0,0.00017382,11]
[334077737,1722739854471,-492.40339763,0.00017389,2]
[334077738,1722739854480,-157.731881,0.00017394,2]
[334077739,1722739854491,-157.499039,0.00017394,2]
[334077740,1722739854502,-315.480611,0.00017394,2]
[334077741,1722739854511,-764.782651,0.00017394,2]
[334077742,1722739854520,-1257.658694,0.00017394,2]
[334077743,1722739854529,-1145.320081,0.00017394,2]
[334077744,1722739854539,-154.72922386,0.00017403,2]
[334077745,1722739854549,-160.0,0.00017416,12]
[334077746,1722739854561,-160.0,0.00017451,13]
[334077747,1722739854570,-325.02,0.00017465,2]
[334077748,1722739854583,-500.0,0.00017465,2]
[334077749,1722739854593,-500.0,0.00017465,2]
[334077750,1722739854602,-500.0,0.00017465,2]
[334077751,1722739854611,-500.0,0.00017465,2]
[334077752,1722739854628,-1305.48,0.00017465,2]
[334077753,1722739854638,-500.0,0.00017465,2]
[334077754,1722739854648,-502.03,0.00017465,2]
[334077755,1722739854658,-1075.5,0.00017465,2]
[334077756,1722739854667,-691.13,0.00017465,2]
[334077757,1722739854676,-658.23,0.00017465,2]
[334077758,1722739854686,-500.0,0.00017466,2]
[334077759,1722739854695,-642.56,0.00017466,2]
[334077760,1722739854704,-160.0,0.00017485,14]
[334077761,1722739854712,-1092.982,0.00017492,2]
[334077762,1722739854722,-1000.0,0.000175,2]
[334077763,1722739854731,-500.0,0.00017506,2]
[334077764,1722739854740,-956.65,0.00017506,2]
[334077765,1722739854751,-160.0,0.0001752,15]
[334077766,1722739854763,-500.0,0.00017521,2]
[334077767,1722739854774,-356.0,0.0001753,2]
[334077768,1722739854784,-160.0,0.00017555,16]
[334077769,1722739854793,-160.0,0.00017589,17]
[334077770,1722739854802,-1987.29077705,0.000176,2]
[334077771,1722739854813,-315.480611,0.00017612,2]
[334077772,1722739854821,-764.782651,0.00017612,2]
[334077773,1722739854830,-1257.658694,0.00017612,2]
[334077774,1722739854840,-1145.320081,0.00017612,2]
[334077775,1722739854850,-160.0,0.00017624,18]
[334077776,1722739854860,-160.0,0.00017659,19]
[334077777,1722739854874,-160.0,0.00017693,20]
[334077778,1722739854883,-160.0,0.00017728,21]
[334077779,1722739854893,-325.02,0.00017739,2]
[334077780,1722739854902,-500.0,0.00017739,2]
[334077781,1722739854911,-500.0,0.00017739,2]
[334077782,1722739854920,-500.0,0.00017739,2]
[334077783,1722739854930,-500.0,0.00017739,2]
[334077784,1722739854939,-1305.48,0.00017739,2]
[334077785,1722739854948,-500.0,0.00017739,2]
[334077786,1722739854958,-502.03,0.00017739,2]
[334077787,1722739854967,-1075.5,0.00017739,2]
[334077788,1722739854976,-691.13,0.00017739,2]
[334077789,1722739854985,-658.23,0.00017739,2]
[334077790,1722739854995,-500.0,0.0001774,2]
[334077791,1722739855004,-642.56,0.0001774,2]
[334077792,1722739855013,-153.4043326,0.00017749,2]
[334077793,1722739855022,-153.0,0.00017749,2]
[334077794,1722739855031,-153.0,0.00017749,2]
[334077795,1722739855041,-206.960494,0.00017749,2]
[334077796,1722739855050,-408.7363075,0.00017749,2]
[334077797,1722739855061,-160.0,0.00017762,22]
[334077798,1722739855072,-500.0,0.0001778,2]
[334077799,1722739855083,-956.65,0.0001778,2]
[334077800,1722739855094,-500.0,0.00017795,2]
[334077801,1722739855103,-160.0,0.00017797,23]
[334077802,1722739855111,-315.480611,0.00017829,2]
[334077803,1722739855123,-764.782651,0.00017829,2]
[334077804,1722739855134,-1257.658694,0.00017829,2]
[334077805,1722739855145,-1145.320081,0.00017829,2]
[334077806,1722739855156,-160.0,0.00017832,24]
[334077807,1722739855166,-816.2198788,0.0001784,2]
[334077808,1722739855174,-160.0,0.00017866,25]
[334077809,1722739855183,-2224.96576729,0.000179,2]
[334077810,1722739855192,-2224.96576726,0.000179,2]
[334077811,1722739855201,-2224.96576726,0.000179,2]
[334077812,1722739855210,-2224.96576726,0.000179,2]
[334077813,1722739855220,-900.0,0.000179,8]
[334077814,1722739855229,-160.0,0.00017901,26]
[334077815,1722739855238,-160.0,0.00017936,27]
[334077816,1722739855247,-160.0,0.0001797,28]
[334077817,1722739855257,-183.0,0.00018,2]
[334077818,1722739855266,-1043.35607966,0.00018,2]
[334077819,1722739855275,-205.50131838,0.00018,2]
[334077820,1722739855285,-1755.89,0.00018,31]
[334077821,1722739855295,-1755.89,0.00018,31]
[334077822,1722739855304,-1755.89,0.00018,31]
[334077823,1722739855314,-1755.89,0.00018,31]
[334077824,1722739855324,-1755.89,0.00018,31]
[334077825,1722739855335,-1755.89,0.00018,31]
[334077826,1722739855347,-1755.89,0.00018,31]
[334077827,1722739855356,-1755.89,0.00018,31]
[334077828,1722739855368,-1755.89,0.00018,31]
[334077829,1722739855379,-1755.89,0.00018,31]
[334077830,1722739855389,-1755.89,0.00018,31]
[334077831,1722739855399,-1755.89,0.00018,31]
[334077832,1722739855409,-1755.89,0.00018,31]
[334077833,1722739855418,-1755.89,0.00018,31]
[334077834,1722739855428,-1755.89,0.00018,31]
[334077835,1722739855438,-1755.89,0.00018,31]
[334077836,1722739855449,-1755.89,0.00018,31]
[334077837,1722739855460,-1755.89,0.00018,31]
[334077838,1722739855471,-1755.89,0.00018,31]
[334077839,1722739855480,-1755.89,0.00018,31]
[334077840,1722739855490,-1000.0,0.00018,2]
[334077841,1722739855500,-160.0,0.00018005,29]
[334077842,1722739855510,-325.02,0.00018013,2]
[334077843,1722739855521,-500.0,0.00018013,2]
[334077844,1722739855530,-500.0,0.00018013,2]
[334077845,1722739855542,-500.0,0.00018013,2]
[334077846,1722739855556,-636.07170071,0.00018013,2]
[334077847,1722739855567,-1305.48,0.00018013,2]
[334077848,1722739855577,-500.0,0.00018013,2]
[334077849,1722739855586,-502.03,0.00018013,2]
[334077850,1722739855597,-1075.5,0.00018013,2]
[334077851,1722739855608,-691.13,0.00018013,2]
[334077852,1722739855623,-658.23,0.00018013,2]
[334077853,1722739855635,-500.0,0.00018014,2]
[334077854,1722739855646,-642.56,0.00018014,2]
[334077855,1722739855658,-160.0,0.00018039,30]
[334077856,1722739855667,-315.480611,0.00018046,2]
[334077857,1722739855678,-764.782651,0.00018046,2]
[334077858,1722739855688,-1257.658694,0.00018046,2]
[334077859,1722739855698,-1145.320081,0.00018046,2]
[334077860,1722739855707,-500.0,0.00018054,2]
[334077861,1722739855716,-956.65,0.00018054,2]
[334077862,1722739855727,-207.45203289,0.00018069,2]
[334077863,1722739855737,-160.0,0.00018074,31]
[334077864,1722739855748,-312.49400813,0.00018074,5]
[334077865,1722739855758,-356.0,0.00018076,2]
[334077866,1722739855767,-9641.65829969,0.00018125,2]
[334077867,1722739855776,-7001.07154863,0.00018125,2]
[334077868,1722739855786,-315.480611,0.00018264,2]
[334077869,1722739855795,-764.782651,0.00018264,2]
[334077870,1722739855804,-1257.658694,0.00018264,2]
[334077871,1722739855813,-1145.320081,0.00018264,2]
[334077872,1722739855822,-325.02,0.00018287,2]
[334077873,1722739855831,-500.0,0.00018287,2]
[334077874,1722739855840,-500.0,0.00018287,2]
[334077875,1722739855849,-500.0,0.00018287,2]
[334077876,1722739855859,-1305.48,0.00018287,2]
[334077877,1722739855870,-500.0,0.00018287,2]
[334077878,1722739855879,-502.03,0.00018287,2]
[334077879,1722739855888,-1075.5,0.00018287,2]
[334077880,1722739855897,-691.13,0.00018287,2]
[334077881,1722739855906,-658.23,0.00018287,2]
[334077882,1722739855915,-500.0,0.00018288,2]
[334077883,1722739855924,-642.56,0.00018288,2]
[334077884,1722739855933,-519.88247013,0.00018328,2]
[334077885,1722739855943,-956.65,0.00018328,2]
[334077886,1722739855952,-5814.13332555,0.00018447,2]
[334077887,1722739855963,-951.69950854,0.00018489,2]
[334077888,1722739855974,-1000.0,0.000185,2]
[334077889,1722739855985,-12064.31998019,0.00018557,2]
[334077890,1722739945682,3577.58994391,0.00022493,60]
[334077894,1722740746168,-156.42758895,9.999e-05,2]
[334077895,1722740746192,-417.53482764,9.999e-05,2]
[334077896,1722740746215,-286.7959108,0.00014219,2]
[334077897,1722740746238,-313.108648,0.00014247,2]
[334077898,1722740746262,-156.18723499,0.00014247,2]
[334077899,1722740833126,-520.68776501,0.00014247,2]
[334077900,1722740833148,-309.73672378,0.00014247,2]
[334077901,1722740833171,-166.545192,0.00014262,2]
[334077902,1722740833193,-320.5122658,0.00015,2]
[334077903,1722740844131,-2756.49673201,0.00014247,2]
[334077904,1722740844153,-4687.3922734,0.00014247,2]
[334077905,1722740845106,-406.66219189,0.00014247,2]
[334077906,1722740897527,509.10248067,0.00027,120]
[334077907,1722741004950,331.15,0.00027,120]
[334078080,1722741039065,-590.13211579,0.000149,2]
[334078081,1722741039076,-2527.85099872,0.00015,2]
[334078082,1722741039088,-154.72922386,0.00015,2]
[334078083,1722741039100,-166.545192,0.00015005,2]
[334078084,1722741039112,-2674.48118317,0.00015437,2]
[334078085,1722741039123,-369.69896112,0.00015445,2]
[334078086,1722741039133,-369.69896111,0.00015486,2]
[334078087,1722741039144,-300.0,0.00015534,2]
[334078088,1722741039155,-510.004396,0.00015535,2]
[334078089,1722741039167,-672.19,0.00015535,2]
[334078090,1722741039176,-500.0,0.00015536,2]
[334078091,1722741039186,-500.0,0.00015536,2]
[334078092,1722741039195,-500.0,0.00015536,2]
[334078094,1722741039205,-36.76960629,0.00015536,2]
[334078096,1722741039218,-463.23039371,0.00015536,2]
[334078098,1722741039228,-17670.74959579,0.00015536,2]
[334078100,1722741039240,-18423.82989451,0.00015536,2]
[334078102,1722741039251,-24523.10491394,0.00015537,2]
[334078108,1722741039423,-2812.99416638,0.00015537,2]
[334078119,1722741041118,-369.69896111,0.00015527,2]
[334078121,1722741041127,-8758.48040998,0.00015537,2]
[334078123,1722741041137,-549.2078764,0.00015545,2]
[334078125,1722741041146,-500.0,0.00015545,2]
[334078126,1722741041155,-500.0,0.00015545,2]
[334078127,1722741041165,-500.0,0.00015545,2]
[334078128,1722741041174,-500.0,0.00015545,2]
[334078129,1722741041183,-500.0,0.00015545,2]
[334078130,1722741041193,-500.0,0.00015545,2]
[334078131,1722741041202,-500.0,0.00015545,2]
[334078132,1722741041211,-500.0,0.00015545,2]
[334078133,1722741041220,-500.0,0.00015545,2]
[334078134,1722741041230,-500.0,0.00015545,2]
[334078135,1722741041239,-500.0,0.00015545,2]
[334078136,1722741041249,-500.0,0.00015545,2]
[334078137,1722741041258,-500.0,0.00015545,2]
[334078138,1722741041267,-500.0,0.00015545,2]
[334078139,1722741041276,-500.0,0.00015545,2]
[334078140,1722741041286,-500.0,0.00015545,2]
[334078141,1722741041295,-500.0,0.00015545,2]
[334078142,1722741041305,-500.0,0.00015545,2]
[334078143,1722741041314,-197.5529298,0.00015545,2]
[334078144,1722741041323,-500.0,0.00015545,2]
[334078145,1722741041332,-500.0,0.00015545,2]
[334078146,1722741041345,-67.62786773,0.00015545,2]
[334078147,1722741041367,-748.30213227,0.00015545,2]
[334078148,1722741041377,-500.0,0.00015545,2]
[334078149,1722741041386,-500.0,0.00015545,2]
[334078150,1722741041395,-500.0,0.00015545,2]
[334078151,1722741041405,-500.0,0.00015546,2]
[334078152,1722741041414,-500.0,0.00015546,2]
[334078153,1722741041423,-500.0,0.00015546,2]
[334078154,1722741041432,-184.30914391,0.00015546,2]
[334078155,1722741041444,-315.69085609,0.00015546,2]
[334078156,1722741041453,-500.0,0.00015546,2]
[334078157,1722741041462,-475.15994006,0.00015546,2]
[334078158,1722741041472,-585.35855688,0.00015546,2]
[334078159,1722741041481,-506.83791197,0.00015546,2]
[334078160,1722741041491,-500.0,0.00015546,2]
[334078161,1722741041500,-500.0,0.00015546,2]
[334078162,1722741041509,-500.0,0.00015546,2]
[334078163,1722741041520,-500.0,0.00015546,2]
[334078164,1722741041529,-500.0,0.00015546,2]
[334078165,1722741041538,-500.0,0.00015546,2]
[334078166,1722741041547,-500.0,0.00015546,2]
[334078167,1722741041556,-500.0,0.00015546,2]
[334078168,1722741041565,-500.0,0.00015546,2]
[334078169,1722741041575,-500.0,0.00015546,2]
[334078170,1722741041584,-500.0,0.00015546,2]
[334078171,1722741041593,-500.0,0.00015546,2]
[334078172,1722741041602,-556.37327552,0.00015546,2]
[334078173,1722741041611,-500.0,0.00015546,2]
[334078174,1722741041620,-514.80531902,0.00015546,2]
[334078175,1722741041629,-500.0,0.00015546,2]
[334078176,1722741041639,-502.60491303,0.00015546,2]
[334078177,1722741041649,-500.0,0.00015546,2]
[334078178,1722741041658,-500.0,0.00015546,2]
[334078179,1722741041667,-505.73456761,0.00015546,2]
[334078180,1722741041676,-505.33640037,0.00015546,2]
[334078181,1722741041686,-535.96007604,0.00015546,2]
[334078182,1722741041696,-505.17139234,0.00015546,2]
[334078183,1722741041707,-530.81494499,0.00015546,2]
[334078184,1722741041718,-506.08068695,0.00015546,2]
[334078185,1722741041730,-508.94969418,0.00015546,2]
[334078186,1722741041741,-506.53290386,0.00015546,2]
[334078187,1722741041751,-505.94287879,0.00015546,2]
[334078188,1722741041761,-503.89260719,0.00015546,2]
[334078189,1722741041774,-500.0,0.00015546,2]
[334078190,1722741041784,-500.0,0.00015546,2]
[334078191,1722741041793,-517.10478378,0.00015546,2]
[334078192,1722741041803,-528.97781954,0.00015546,2]
[334078193,1722741041813,-512.62160949,0.00015546,2]
[334078194,1722741041823,-500.0,0.00015546,2]
[334078195,1722741041833,-502.8398738,0.00015546,2]
[334078196,1722741041843,-503.7065032,0.00015546,2]
[334078197,1722741041854,-507.68148816,0.00015546,2]
[334078198,1722741041866,-508.60339659,0.00015546,2]
[334078199,1722741041875,-500.0,0.00015546,2]
[334078200,1722741041886,-500.0,0.00015546,2]
[334078201,1722741041898,-500.0,0.00015546,2]
[334078202,1722741041908,-512.13818743,0.00015546,2]
[334078203,1722741041919,-503.40210027,0.00015546,2]
[334078204,1722741041931,-507.41334658,0.00015546,2]
[334078205,1722741041944,-558.29136924,0.00015546,2]
[334078206,1722741041955,-503.05143307,0.00015546,2]
[334078207,1722741041964,-503.48506594,0.00015546,2]
[334078208,1722741041974,-508.47835342,0.00015546,2]
[334078209,1722741041985,-506.43652575,0.00015546,2]
[334078210,1722741041999,-508.72530693,0.00015546,2]
[334078211,1722741042011,-503.3782715,0.00015546,2]
[334078212,1722741042023,-505.11730698,0.00015546,2]
[334078213,1722741042033,-518.24261251,0.00015546,2]
[334078214,1722741042044,-507.51737681,0.00015546,2]
[334078215,1722741042054,-505.37530312,0.00015546,2]
[334078216,1722741042064,-500.0,0.00015546,2]
[334078217,1722741042075,-500.0,0.00015546,2]
[334078218,1722741042085,-506.10072415,0.00015546,2]
[334078219,1722741042095,-503.62539787,0.00015546,2]
[334078220,1722741042104,-542.32314998,0.00015546,2]
[334078221,1722741042116,-550.91737071,0.00015546,2]
[334078222,1722741042127,-500.0,0.00015546,2]
[334078223,1722741042139,-508.63147793,0.00015546,2]
[334078224,1722741042149,-504.26956275,0.00015546,2]
[334078225,1722741042158,-507.94138755,0.00015546,2]
[334078226,1722741042167,-507.44813745,0.00015546,2]
[334078227,1722741042177,-500.0,0.00015546,2]
[334078228,1722741042186,-507.53686441,0.00015546,2]
[334078229,1722741042195,-500.0,0.00015546,2]
[334078230,1722741042204,-502.73361857,0.00015546,2]
[334078231,1722741042214,-507.47598047,0.00015546,2]
[334078232,1722741042225,-505.13817608,0.00015546,2]
[334078233,1722741042236,-509.54238547,0.00015546,2]
[334078234,1722741042246,-503.95491173,0.00015546,2]
[334078235,1722741042256,-500.0,0.00015546,2]
[334078236,1722741042267,-504.71177557,0.00015546,2]
[334078237,1722741042279,-502.99009575,0.00015546,2]
[334078238,1722741042289,-500.0,0.00015546,2]
[334078239,1722741042300,-406.08606635,0.00015546,2]
[334078240,1722741042311,-349.82644739,0.00015546,2]
[334078241,1722741042321,-500.0,0.00015546,2]
[334078242,1722741042330,-502.44233098,0.00015546,2]
[334078243,1722741042341,-505.15618585,0.00015546,2]
[334078244,1722741042350,-505.91191263,0.00015546,2]
[334078245,1722741042359,-506.9372661,0.00015546,2]
[334078246,1722741042370,-500.0,0.00015546,2]
[334078247,1722741042379,-500.0,0.00015546,2]
[334078248,1722741042391,-504.66685399,0.00015546,2]
[334078249,1722741042400,-502.20272598,0.00015546,2]
[334078250,1722741042409,-504.09243417,0.00015546,2]
[334078251,1722741042420,-500.0,0.00015546,2]
[334078252,1722741042432,-500.0,0.00015546,2]
[334078253,1722741042443,-500.0,0.00015546,2]
[334078254,1722741042453,-508.73254906,0.00015546,2]
[334078255,1722741042463,-500.0,0.00015546,2]
[334078256,1722741042472,-500.0,0.00015546,2]
[334078257,1722741042482,-509.01665876,0.00015546,2]
[334078258,1722741042492,-503.435228,0.00015546,2]
[334078259,1722741042501,-500.0,0.00015546,2]
[334078260,1722741042511,-500.0,0.00015546,2]
[334078261,1722741042521,-503.22711682,0.00015546,2]
[334078262,1722741042530,-500.0,0.00015546,2]
[334078263,1722741042540,-506.1714819,0.00015546,2]
[334078264,1722741042549,-504.48050996,0.00015546,2]
[334078265,1722741042558,-513.4211505,0.00015546,2]
[334078266,1722741042568,-500.0,0.00015546,2]
[334078267,1722741042578,-396.95342816,0.00015546,2]
[334078268,1722741042587,-500.0,0.00015546,2]
[334078269,1722741042596,-504.99402446,0.00015546,2]
[334078270,1722741042606,-579.45,0.00015546,2]
[334078271,1722741042615,-501.7819909,0.00015546,2]
[334078272,1722741042624,-508.3875656,0.00015546,2]
[334078273,1722741042633,-500.0,0.00015546,2]
[334078274,1722741042643,-500.0,0.00015546,2]
[334078275,1722741042653,-504.58109871,0.00015546,2]
[334078276,1722741042663,-504.22816803,0.00015546,2]